[Event "*** Titled Tuesday Blitz"]
[Site "Chess.com"]
[Date "2020.12.01"]
[Round "1"]
[White "Soltan49"]
[Black "gilbert_gm"]
[Result "0-1"]
[WhiteElo "2215"]
[BlackElo "2545"]
[TimeControl "180+1"]
[EndTime "10:06:35 PST"]
[Termination "gilbert_gm won by resignation"]

1. d4 {[%clk 0:03:00.9]} 1... Nf6 {[%clk 0:03:00.2]} 2. Nf3 {[%clk 0:03:00]}
2... d5 {[%clk 0:03:00]} 3. Bf4 {[%clk 0:02:59.5]} 3... c6 {[%clk 0:02:59.8]} 4.
e3 {[%clk 0:03:00.2]} 4... Bg4 {[%clk 0:02:59.7]} 5. Bd3 {[%clk 0:03:00.1]} 5...
e6 {[%clk 0:02:59.7]} 6. Nbd2 {[%clk 0:02:59.4]} 6... Bd6 {[%clk 0:02:59.9]} 7.
Bg3 {[%clk 0:02:51.1]} 7... O-O {[%clk 0:02:59.1]} 8. O-O {[%clk 0:02:50.9]}
8... Qc7 {[%clk 0:02:58.8]} 9. c4 {[%clk 0:02:24.4]} 9... Nbd7 {[%clk
0:02:57.5]} 10. Rc1 {[%clk 0:02:08.6]} 10... Rfe8 {[%clk 0:02:53.2]} 11. Qc2
{[%clk 0:02:01.8]} 11... Bh5 {[%clk 0:02:50.3]} 12. cxd5 {[%clk 0:01:17.3]}
12... exd5 {[%clk 0:02:51.2]} 13. a3 {[%clk 0:01:13.2]} 13... a5 {[%clk
0:02:50.7]} 14. b4 {[%clk 0:01:06.4]} 14... axb4 {[%clk 0:02:43.8]} 15. axb4
{[%clk 0:01:07.3]} 15... Bxg3 {[%clk 0:02:44.7]} 16. hxg3 {[%clk 0:01:07.2]}
16... Qb6 {[%clk 0:02:38.9]} 17. b5 {[%clk 0:01:03.7]} 17... Rac8 {[%clk
0:02:22.4]} 18. bxc6 {[%clk 0:00:58.2]} 18... bxc6 {[%clk 0:02:23.3]} 19. Nb3
{[%clk 0:00:31.5]} 19... Bxf3 {[%clk 0:02:04.3]} 20. gxf3 {[%clk 0:00:31.5]}
20... g6 {[%clk 0:02:05.2]} 21. Kg2 {[%clk 0:00:30.6]} 21... Kg7 {[%clk
0:02:04.2]} 22. Nc5 {[%clk 0:00:28.2]} 22... Nf8 {[%clk 0:02:01.2]} 23. Rb1
{[%clk 0:00:25.8]} 23... Qd8 {[%clk 0:01:56.3]} 24. Rb7 {[%clk 0:00:22.8]} 24...
Re7 {[%clk 0:01:54.8]} 25. Rfb1 {[%clk 0:00:22]} 25... h5 {[%clk 0:01:53.7]} 26.
Rxe7 {[%clk 0:00:16.7]} 26... Qxe7 {[%clk 0:01:54.5]} 27. Rb7 {[%clk 0:00:17.5]}
27... Rc7 {[%clk 0:01:54.7]} 28. Qb3 {[%clk 0:00:15.5]} 28... N6h7 {[%clk
0:01:46.6]} 29. Rxc7 {[%clk 0:00:15.6]} 29... Qxc7 {[%clk 0:01:46.8]} 30. Qb7
{[%clk 0:00:16.3]} 30... Qd6 {[%clk 0:01:38.7]} 31. Qc8 {[%clk 0:00:13.3]} 31...
Ng5 {[%clk 0:01:33.5]} 32. Nb7 {[%clk 0:00:11.7]} 32... Qf6 {[%clk 0:01:21.9]}
33. f4 {[%clk 0:00:11.2]} 33... Nge6 {[%clk 0:01:21.7]} 34. Nc5 {[%clk 0:00:05]}
34... Nxc5 {[%clk 0:01:19.6]} 35. dxc5 {[%clk 0:00:05.3]} 35... Ne6 {[%clk
0:01:19.9]} 36. Ba6 {[%clk 0:00:03.4]} 36... Nxc5 {[%clk 0:01:19.4]} 37. Be2
{[%clk 0:00:03.8]} 37... Qe6 {[%clk 0:01:15.7]} 38. Bf3 {[%clk 0:00:04.1]} 38...
Qxc8 {[%clk 0:01:15.7]} 0-1

[Event "*** Titled Tuesday Blitz"]
[Site "Chess.com"]
[Date "2020.12.01"]
[Round "1"]
[White "Zq1"]
[Black "garfio2017"]
[Result "1-0"]
[WhiteElo "2594"]
[BlackElo "2286"]
[TimeControl "180+1"]
[EndTime "10:06:36 PST"]
[Termination "Zq1 won by resignation"]

1. d4 {[%clk 0:02:59.9]} 1... Nf6 {[%clk 0:02:58.9]} 2. c4 {[%clk 0:02:59.9]}
2... e6 {[%clk 0:02:59]} 3. Nc3 {[%clk 0:03:00]} 3... d5 {[%clk 0:02:58.8]} 4.
Nf3 {[%clk 0:02:59.3]} 4... Be7 {[%clk 0:02:57.6]} 5. Bf4 {[%clk 0:02:59.2]}
5... O-O {[%clk 0:02:57.4]} 6. e3 {[%clk 0:02:59.4]} 6... b6 {[%clk 0:02:56.4]}
7. cxd5 {[%clk 0:02:58.9]} 7... Nxd5 {[%clk 0:02:54.5]} 8. Nxd5 {[%clk 0:02:59]}
8... exd5 {[%clk 0:02:54.5]} 9. Bd3 {[%clk 0:02:58.8]} 9... h6 {[%clk
0:02:52.8]} 10. O-O {[%clk 0:02:58]} 10... c5 {[%clk 0:02:51.1]} 11. dxc5 {[%clk
0:02:52.5]} 11... bxc5 {[%clk 0:02:49.6]} 12. e4 {[%clk 0:02:52.1]} 12... d4
{[%clk 0:02:41.5]} 13. Qe2 {[%clk 0:02:50.6]} 13... Nc6 {[%clk 0:02:37.2]} 14.
Rac1 {[%clk 0:02:47.5]} 14... Bg4 {[%clk 0:02:34]} 15. h3 {[%clk 0:02:40.2]}
15... Be6 {[%clk 0:02:31.1]} 16. b3 {[%clk 0:02:34.8]} 16... a5 {[%clk
0:02:16.3]} 17. Bc4 {[%clk 0:02:32.4]} 17... Qd7 {[%clk 0:02:06.7]} 18. Bb5
{[%clk 0:02:24.4]} 18... Qb7 {[%clk 0:02:05.4]} 19. Bxc6 {[%clk 0:02:21]} 19...
Qxc6 {[%clk 0:02:04.7]} 20. Nxd4 {[%clk 0:02:21]} 20... Qd7 {[%clk 0:01:56.9]}
21. Nxe6 {[%clk 0:02:19.6]} 21... Qxe6 {[%clk 0:01:57.1]} 22. Qc4 {[%clk
0:02:17]} 22... Qf6 {[%clk 0:01:51.4]} 23. Be3 {[%clk 0:02:12.8]} 23... Rfc8
{[%clk 0:01:51]} 24. f4 {[%clk 0:02:06.1]} 24... Qb2 {[%clk 0:01:38.3]} 25. Rf2
{[%clk 0:02:00.7]} 25... Qa3 {[%clk 0:01:33.1]} 26. Qa4 {[%clk 0:01:59.9]} 26...
Qxa4 {[%clk 0:01:30.5]} 27. bxa4 {[%clk 0:01:59.3]} 27... Rab8 {[%clk
0:01:29.4]} 28. Rc4 {[%clk 0:01:51.2]} 28... Rb1+ {[%clk 0:01:23.8]} 29. Kh2
{[%clk 0:01:49.1]} 29... Rb4 {[%clk 0:01:23.6]} 30. Rfc2 {[%clk 0:01:49]} 30...
Rcb8 {[%clk 0:01:17.7]} 31. e5 {[%clk 0:01:42.3]} 31... Kf8 {[%clk 0:01:09.3]}
32. Kg3 {[%clk 0:01:39.3]} 32... Ke8 {[%clk 0:01:07.6]} 33. Kf3 {[%clk
0:01:38.3]} 33... Kd7 {[%clk 0:01:06.8]} 34. Bxc5 {[%clk 0:01:29.5]} 34... Bxc5
{[%clk 0:01:03.1]} 35. Rxc5 {[%clk 0:01:28.4]} 35... Rxa4 {[%clk 0:01:02.7]} 36.
Rc7+ {[%clk 0:01:24.5]} 36... Ke8 {[%clk 0:01:01.9]} 37. Ra7 {[%clk 0:01:22.6]}
37... Ra3+ {[%clk 0:00:49]} 38. Kg4 {[%clk 0:01:20.6]} 38... g6 {[%clk
0:00:43.7]} 39. Rcc7 {[%clk 0:01:19]} 39... Rxa2 {[%clk 0:00:36.9]} 40. Re7+
{[%clk 0:01:18.7]} 40... Kd8 {[%clk 0:00:36.2]} 41. Rxf7 {[%clk 0:01:18.6]}
41... Ke8 {[%clk 0:00:31.2]} 42. Rh7 {[%clk 0:01:16.9]} 42... h5+ {[%clk
0:00:21.2]} 43. Kg5 {[%clk 0:01:13.9]} 43... Rxg2+ {[%clk 0:00:18.5]} 44. Kh6
{[%clk 0:01:13.5]} 1-0

[Event "*** Titled Tuesday Blitz"]
[Site "Chess.com"]
[Date "2020.12.01"]
[Round "1"]
[White "Alindsay211"]
[Black "AlexeiShirov"]
[Result "0-1"]
[WhiteElo "2418"]
[BlackElo "2847"]
[TimeControl "180+1"]
[EndTime "10:06:37 PST"]
[Termination "AlexeiShirov won on time"]

1. Nf3 {[%clk 0:02:56.8]} 1... d5 {[%clk 0:02:59.3]} 2. d4 {[%clk 0:02:55.6]}
2... Nf6 {[%clk 0:02:58.6]} 3. g3 {[%clk 0:02:54.9]} 3... Bg4 {[%clk 0:02:56]}
4. Bg2 {[%clk 0:02:54.5]} 4... Nbd7 {[%clk 0:02:55.8]} 5. O-O {[%clk 0:02:52.8]}
5... e6 {[%clk 0:02:54]} 6. Bf4 {[%clk 0:02:47]} 6... Bd6 {[%clk 0:02:52.5]} 7.
Ne5 {[%clk 0:02:30.5]} 7... Bh5 {[%clk 0:02:49.7]} 8. Nd2 {[%clk 0:02:11.3]}
8... O-O {[%clk 0:02:47.9]} 9. Nxd7 {[%clk 0:01:49.2]} 9... Qxd7 {[%clk
0:02:46.2]} 10. Bxd6 {[%clk 0:01:49]} 10... Qxd6 {[%clk 0:02:45.2]} 11. c3
{[%clk 0:01:36.3]} 11... c5 {[%clk 0:02:44.2]} 12. dxc5 {[%clk 0:01:31.2]} 12...
Qxc5 {[%clk 0:02:43.6]} 13. Nf3 {[%clk 0:01:30.6]} 13... Rab8 {[%clk 0:02:38.8]}
14. Qd4 {[%clk 0:01:25.2]} 14... Rfc8 {[%clk 0:02:38]} 15. Qxc5 {[%clk
0:01:16.8]} 15... Rxc5 {[%clk 0:02:36.1]} 16. Rfe1 {[%clk 0:01:16.3]} 16... Ne4
{[%clk 0:02:29.1]} 17. Nd4 {[%clk 0:01:00.9]} 17... Nd6 {[%clk 0:02:20.8]} 18.
e4 {[%clk 0:00:47.7]} 18... dxe4 {[%clk 0:02:17]} 19. Bxe4 {[%clk 0:00:45.8]}
19... Nxe4 {[%clk 0:02:16.7]} 20. Rxe4 {[%clk 0:00:44.2]} 20... Bg6 {[%clk
0:02:16.4]} 21. Re2 {[%clk 0:00:36.9]} 21... Rd5 {[%clk 0:02:15.8]} 22. Rae1
{[%clk 0:00:32.4]} 22... Rbd8 {[%clk 0:02:12.8]} 23. f4 {[%clk 0:00:23.4]} 23...
h6 {[%clk 0:02:08.1]} 24. Re5 {[%clk 0:00:22.9]} 24... Rxe5 {[%clk 0:02:02.8]}
25. Rxe5 {[%clk 0:00:23.8]} 25... Bb1 {[%clk 0:02:02.1]} 26. a3 {[%clk
0:00:21.5]} 26... Ba2 {[%clk 0:02:01.6]} 27. Kf2 {[%clk 0:00:21.1]} 27... Bd5
{[%clk 0:01:58.9]} 28. Ke2 {[%clk 0:00:17.2]} 28... f6 {[%clk 0:01:57.1]} 29.
Re3 {[%clk 0:00:16.6]} 29... Kf7 {[%clk 0:01:56.1]} 30. Kd2 {[%clk 0:00:16.5]}
30... g5 {[%clk 0:01:52.7]} 31. Kc2 {[%clk 0:00:15.4]} 31... Rg8 {[%clk
0:01:49]} 32. Ne2 {[%clk 0:00:11.9]} 32... Bc4 {[%clk 0:01:48.1]} 33. Kd2 {[%clk
0:00:06.7]} 33... gxf4 {[%clk 0:01:40.1]} 34. Nxf4 {[%clk 0:00:05.7]} 34... e5
{[%clk 0:01:40]} 35. Nd3 {[%clk 0:00:05.7]} 35... h5 {[%clk 0:01:36.5]} 36. Nf2
{[%clk 0:00:04.1]} 36... h4 {[%clk 0:01:33.3]} 37. Kc2 {[%clk 0:00:02.8]} 37...
hxg3 {[%clk 0:01:31.6]} 38. hxg3 {[%clk 0:00:03.7]} 38... Rh8 {[%clk 0:01:29.6]}
39. Ng4 {[%clk 0:00:04]} 39... Be6 {[%clk 0:01:28.7]} 40. Nf2 {[%clk 0:00:03.5]}
40... Rh2 {[%clk 0:01:27.6]} 41. Re2 {[%clk 0:00:04.2]} 41... Rg2 {[%clk
0:01:27]} 42. Kd2 {[%clk 0:00:02.2]} 42... Bc4 {[%clk 0:01:19.5]} 43. Nd3 {[%clk
0:00:02.4]} 43... Rxe2+ {[%clk 0:01:18.4]} 44. Kxe2 {[%clk 0:00:02.4]} 44... e4
{[%clk 0:01:18.4]} 0-1

[Event "*** Titled Tuesday Blitz"]
[Site "Chess.com"]
[Date "2020.12.01"]
[Round "1"]
[White "temus_galaktionov"]
[Black "ukchessbomber"]
[Result "1-0"]
[WhiteElo "2686"]
[BlackElo "2349"]
[TimeControl "180+1"]
[EndTime "10:06:39 PST"]
[Termination "temus_galaktionov won on time"]

1. d4 {[%clk 0:02:57.7]} 1... Nf6 {[%clk 0:03:00]} 2. Nf3 {[%clk 0:02:57]} 2...
g6 {[%clk 0:03:00.1]} 3. c4 {[%clk 0:02:57.2]} 3... Bg7 {[%clk 0:03:00.8]} 4.
Nc3 {[%clk 0:02:57.3]} 4... O-O {[%clk 0:03:01.4]} 5. e4 {[%clk 0:02:57.1]} 5...
d6 {[%clk 0:03:02]} 6. Be2 {[%clk 0:02:57.6]} 6... e5 {[%clk 0:03:02.6]} 7. O-O
{[%clk 0:02:57.6]} 7... Nc6 {[%clk 0:03:02.8]} 8. d5 {[%clk 0:02:57.5]} 8... Ne7
{[%clk 0:03:02.9]} 9. Ne1 {[%clk 0:02:58.4]} 9... Nd7 {[%clk 0:02:57.8]} 10. f3
{[%clk 0:02:59.3]} 10... f5 {[%clk 0:02:57.6]} 11. g4 {[%clk 0:03:00.2]} 11...
f4 {[%clk 0:02:50.4]} 12. h4 {[%clk 0:02:58.9]} 12... a5 {[%clk 0:02:49.1]} 13.
Nd3 {[%clk 0:02:58]} 13... b6 {[%clk 0:02:49.1]} 14. Bd2 {[%clk 0:02:57.3]}
14... Nc5 {[%clk 0:02:49.3]} 15. Be1 {[%clk 0:02:54.9]} 15... Bd7 {[%clk
0:02:43.9]} 16. Kg2 {[%clk 0:02:53]} 16... h5 {[%clk 0:02:42.4]} 17. g5 {[%clk
0:02:51.5]} 17... Qc8 {[%clk 0:02:40.2]} 18. Kh2 {[%clk 0:02:50.7]} 18... Qb7
{[%clk 0:02:29.7]} 19. Bf2 {[%clk 0:02:49.2]} 19... Nxd3 {[%clk 0:02:10.2]} 20.
Qxd3 {[%clk 0:02:46.8]} 20... Rfd8 {[%clk 0:02:10.4]} 21. b3 {[%clk 0:02:43.7]}
21... c5 {[%clk 0:01:33.7]} 22. dxc6 {[%clk 0:02:30.5]} 22... Bxc6 {[%clk
0:01:24.4]} 23. Rfd1 {[%clk 0:02:27.9]} 23... Rac8 {[%clk 0:01:01.7]} 24. Bf1
{[%clk 0:02:25.7]} 24... Bf8 {[%clk 0:00:42.6]} 25. Rd2 {[%clk 0:02:24.9]} 25...
Rb8 {[%clk 0:00:31.8]} 26. Rad1 {[%clk 0:02:23]} 26... Nc8 {[%clk 0:00:25]} 27.
Bh3 {[%clk 0:02:19.4]} 27... Na7 {[%clk 0:00:24.4]} 28. a4 {[%clk 0:02:12.9]}
28... Bd7 {[%clk 0:00:22.7]} 29. Bxd7 {[%clk 0:01:59.6]} 29... Qxd7 {[%clk
0:00:23.6]} 30. Nd5 {[%clk 0:01:59.8]} 30... Qc6 {[%clk 0:00:11.3]} 31. Rb1
{[%clk 0:01:46.6]} 31... Kf7 {[%clk 0:00:10.5]} 32. Rdb2 {[%clk 0:01:45.6]}
32... Rdc8 {[%clk 0:00:05.1]} 33. b4 {[%clk 0:01:41.3]} 33... Qxa4 {[%clk
0:00:03]} 34. Nxb6 {[%clk 0:01:39.5]} 34... Qc6 {[%clk 0:00:02.1]} 35. Nxc8
{[%clk 0:01:38.6]} 35... Nxc8 {[%clk 0:00:01.9]} 36. bxa5 {[%clk 0:01:37.9]}
36... Ra8 {[%clk 0:00:02.8]} 37. Be1 {[%clk 0:01:27.1]} 37... Ne7 {[%clk
0:00:02.4]} 38. Rb7 {[%clk 0:01:25.8]} 38... Rc8 {[%clk 0:00:02]} 39. Qd5+
{[%clk 0:01:23.2]} 39... Qxd5 {[%clk 0:00:01.7]} 40. cxd5 {[%clk 0:01:24.1]}
40... Rc2+ {[%clk 0:00:01.7]} 41. Kg1 {[%clk 0:01:24.3]} 41... Kg8 {[%clk
0:00:02.4]} 42. a6 {[%clk 0:01:22.8]} 42... Ra2 {[%clk 0:00:02.6]} 43. a7 {[%clk
0:01:22]} 43... Nc8 {[%clk 0:00:02.3]} 44. Bf2 {[%clk 0:01:21.1]} 1-0

[Event "*** Titled Tuesday Blitz"]
[Site "Chess.com"]
[Date "2020.12.01"]
[Round "1"]
[White "Kislov_Oleg"]
[Black "Nikolakis2014"]
[Result "0-1"]
[WhiteElo "2367"]
[BlackElo "2712"]
[TimeControl "180+1"]
[EndTime "10:06:40 PST"]
[Termination "Nikolakis2014 won by resignation"]

1. e4 {[%clk 0:03:00.7]} 1... c6 {[%clk 0:02:59.5]} 2. d4 {[%clk 0:03:00.3]}
2... d5 {[%clk 0:02:59.7]} 3. Nc3 {[%clk 0:03:00]} 3... dxe4 {[%clk 0:02:58.7]}
4. Nxe4 {[%clk 0:03:00.9]} 4... Nf6 {[%clk 0:02:59]} 5. Nxf6+ {[%clk 0:02:59.5]}
5... exf6 {[%clk 0:02:59.1]} 6. c3 {[%clk 0:02:58]} 6... Bd6 {[%clk 0:02:59.2]}
7. Bd3 {[%clk 0:02:56.8]} 7... O-O {[%clk 0:02:58.7]} 8. Qc2 {[%clk 0:02:55.8]}
8... Re8+ {[%clk 0:02:57.1]} 9. Ne2 {[%clk 0:02:55.4]} 9... h5 {[%clk 0:02:57]}
10. Be3 {[%clk 0:02:46.7]} 10... Nd7 {[%clk 0:02:51.4]} 11. O-O-O {[%clk
0:02:45.5]} 11... b5 {[%clk 0:02:48.6]} 12. Kb1 {[%clk 0:02:35.7]} 12... Nb6
{[%clk 0:02:48.4]} 13. Nc1 {[%clk 0:02:34.4]} 13... Nd5 {[%clk 0:02:39.9]} 14.
Bd2 {[%clk 0:02:26.8]} 14... a5 {[%clk 0:02:36.9]} 15. g3 {[%clk 0:02:25.1]}
15... a4 {[%clk 0:02:29.9]} 16. Rhe1 {[%clk 0:02:16.2]} 16... Be6 {[%clk
0:02:09]} 17. Bf5 {[%clk 0:02:04.1]} 17... Qd7 {[%clk 0:01:56.3]} 18. Bxe6
{[%clk 0:02:02.1]} 18... Rxe6 {[%clk 0:01:56.3]} 19. Nd3 {[%clk 0:02:01.9]}
19... Rae8 {[%clk 0:01:52.8]} 20. c4 {[%clk 0:01:38.2]} 20... bxc4 {[%clk
0:01:49.7]} 21. Qxc4 {[%clk 0:01:37.9]} 21... Rxe1 {[%clk 0:01:43]} 22. Rxe1
{[%clk 0:01:36.7]} 22... Rxe1+ {[%clk 0:01:39.6]} 23. Bxe1 {[%clk 0:01:36]}
23... Qf5 {[%clk 0:01:38.4]} 24. Kc2 {[%clk 0:01:19.5]} 24... a3 {[%clk
0:01:10.9]} 25. bxa3 {[%clk 0:01:16.2]} 25... Qe4 {[%clk 0:01:09.3]} 26. Kb3
{[%clk 0:00:55.9]} 26... Nb6 {[%clk 0:01:02.6]} 27. Qc2 {[%clk 0:00:40.1]} 27...
Qxd4 {[%clk 0:00:55.5]} 28. Bc3 {[%clk 0:00:31]} 28... Qc4+ {[%clk 0:00:50.9]}
29. Kb2 {[%clk 0:00:31]} 29... Na4+ {[%clk 0:00:50.9]} 30. Kc1 {[%clk
0:00:25.4]} 30... Nxc3 {[%clk 0:00:49.1]} 31. Kd2 {[%clk 0:00:20.3]} 31... Ne4+
{[%clk 0:00:46.9]} 32. Kc1 {[%clk 0:00:19.8]} 32... Bxa3+ {[%clk 0:00:44]} 33.
Kd1 {[%clk 0:00:17.4]} 33... Nxf2+ {[%clk 0:00:39.3]} 34. Nxf2 {[%clk
0:00:15.4]} 34... Qf1+ {[%clk 0:00:38.8]} 35. Kd2 {[%clk 0:00:15.1]} 35... Qxf2+
{[%clk 0:00:39.3]} 0-1

[Event "*** Titled Tuesday Blitz"]
[Site "Chess.com"]
[Date "2020.12.01"]
[Round "1"]
[White "Mikasinski"]
[Black "Isajevsky_Anton"]
[Result "1-0"]
[WhiteElo "2282"]
[BlackElo "2559"]
[TimeControl "180+1"]
[EndTime "10:06:40 PST"]
[Termination "Mikasinski won by resignation"]

1. e4 {[%clk 0:03:00.9]} 1... c5 {[%clk 0:02:55.7]} 2. Nf3 {[%clk 0:03:00.9]}
2... d6 {[%clk 0:02:55.7]} 3. d4 {[%clk 0:03:01.4]} 3... cxd4 {[%clk 0:02:56.6]}
4. Nxd4 {[%clk 0:03:02]} 4... Nf6 {[%clk 0:02:57.1]} 5. Nc3 {[%clk 0:03:02.4]}
5... a6 {[%clk 0:02:57.6]} 6. Be2 {[%clk 0:03:02.6]} 6... e5 {[%clk 0:02:56.9]}
7. Nf3 {[%clk 0:03:03.1]} 7... Qc7 {[%clk 0:02:52.5]} 8. Bg5 {[%clk 0:03:02.3]}
8... Nbd7 {[%clk 0:02:52.3]} 9. a4 {[%clk 0:03:00.7]} 9... b6 {[%clk 0:02:51.8]}
10. Nd2 {[%clk 0:02:59.4]} 10... Bb7 {[%clk 0:02:52]} 11. Bc4 {[%clk 0:01:48.3]}
11... Be7 {[%clk 0:02:47.5]} 12. O-O {[%clk 0:01:37.5]} 12... O-O {[%clk
0:02:47]} 13. Qe2 {[%clk 0:01:34.7]} 13... Rfc8 {[%clk 0:01:59]} 14. Rfd1 {[%clk
0:01:25.1]} 14... h6 {[%clk 0:01:54.6]} 15. Bxf6 {[%clk 0:01:21.4]} 15... Nxf6
{[%clk 0:01:55.5]} 16. Bb3 {[%clk 0:01:19.3]} 16... Qc5 {[%clk 0:01:48.5]} 17.
Nc4 {[%clk 0:01:13.2]} 17... Rab8 {[%clk 0:01:16.7]} 18. Ne3 {[%clk 0:01:00.2]}
18... Bf8 {[%clk 0:00:57.9]} 19. Ned5 {[%clk 0:00:52.5]} 19... Nh7 {[%clk
0:00:30.4]} 20. Rd3 {[%clk 0:00:48.7]} 20... b5 {[%clk 0:00:29]} 21. axb5 {[%clk
0:00:48.2]} 21... axb5 {[%clk 0:00:29.2]} 22. Rad1 {[%clk 0:00:33.1]} 22... Ng5
{[%clk 0:00:28.8]} 23. h4 {[%clk 0:00:32.4]} 23... Ne6 {[%clk 0:00:28.7]} 24.
Rg3 {[%clk 0:00:27.7]} 24... Nd4 {[%clk 0:00:21.5]} 25. Qh5 {[%clk 0:00:27]}
25... Nxb3 {[%clk 0:00:14.1]} 26. Nf6+ {[%clk 0:00:21.5]} 26... Kh8 {[%clk
0:00:14.1]} 27. Qxh6+ {[%clk 0:00:22]} 1-0

[Event "*** Titled Tuesday Blitz"]
[Site "Chess.com"]
[Date "2020.12.01"]
[Round "1"]
[White "andrzej"]
[Black "Funo09"]
[Result "1/2-1/2"]
[WhiteElo "2391"]
[BlackElo "2750"]
[TimeControl "180+1"]
[EndTime "10:06:41 PST"]
[Termination "Game drawn by repetition"]

1. e4 {[%clk 0:03:00.9]} 1... c5 {[%clk 0:02:58.2]} 2. Nf3 {[%clk 0:03:01]} 2...
d6 {[%clk 0:02:57.6]} 3. d4 {[%clk 0:03:01.6]} 3... cxd4 {[%clk 0:02:58.5]} 4.
Nxd4 {[%clk 0:03:02.2]} 4... Nf6 {[%clk 0:02:58.8]} 5. Nc3 {[%clk 0:03:02.8]}
5... a6 {[%clk 0:02:58.8]} 6. Be3 {[%clk 0:03:03.3]} 6... Nbd7 {[%clk 0:02:56]}
7. Bc4 {[%clk 0:02:53.3]} 7... g6 {[%clk 0:02:53.5]} 8. f3 {[%clk 0:02:48.8]}
8... Bg7 {[%clk 0:02:52.4]} 9. Qd2 {[%clk 0:02:48.7]} 9... b5 {[%clk 0:02:50.5]}
10. Bb3 {[%clk 0:02:47.8]} 10... Bb7 {[%clk 0:02:50.8]} 11. O-O {[%clk
0:02:36.2]} 11... Rc8 {[%clk 0:02:48.8]} 12. a4 {[%clk 0:02:34.7]} 12... b4
{[%clk 0:02:48]} 13. Nd5 {[%clk 0:02:33.5]} 13... Nxd5 {[%clk 0:02:47.3]} 14.
Bxd5 {[%clk 0:02:32.4]} 14... Bxd5 {[%clk 0:02:46.5]} 15. exd5 {[%clk
0:02:33.3]} 15... a5 {[%clk 0:02:46.7]} 16. f4 {[%clk 0:02:14.6]} 16... Nc5
{[%clk 0:02:18]} 17. Nc6 {[%clk 0:02:00.4]} 17... Qc7 {[%clk 0:02:17.4]} 18.
Bxc5 {[%clk 0:01:49.4]} 18... dxc5 {[%clk 0:02:18.3]} 19. Rae1 {[%clk
0:01:43.9]} 19... Bf6 {[%clk 0:02:09.4]} 20. Nxe7 {[%clk 0:01:27.9]} 20... Bxe7
{[%clk 0:01:59]} 21. d6 {[%clk 0:01:26.9]} 21... Qc6 {[%clk 0:01:59]} 22. Rxe7+
{[%clk 0:01:19.7]} 22... Kf8 {[%clk 0:01:59.2]} 23. f5 {[%clk 0:01:11.2]} 23...
g5 {[%clk 0:01:45.2]} 24. f6 {[%clk 0:00:57.8]} 24... h6 {[%clk 0:01:40.1]} 25.
d7 {[%clk 0:00:45.1]} 25... Rd8 {[%clk 0:01:39.4]} 26. Rfe1 {[%clk 0:00:39.7]}
26... Qxf6 {[%clk 0:01:38.9]} 27. Re8+ {[%clk 0:00:25.8]} 27... Kg7 {[%clk
0:01:38.1]} 28. Rxh8 {[%clk 0:00:24.2]} 28... Kxh8 {[%clk 0:01:35.4]} 29. Re8+
{[%clk 0:00:21.6]} 29... Kg7 {[%clk 0:01:35.6]} 30. Rxd8 {[%clk 0:00:12.6]}
30... Qxd8 {[%clk 0:01:35.2]} 31. Qd6 {[%clk 0:00:13.1]} 31... c4 {[%clk
0:01:33.9]} 32. Qc6 {[%clk 0:00:12.1]} 32... b3 {[%clk 0:01:27.3]} 33. cxb3
{[%clk 0:00:07.9]} 33... cxb3 {[%clk 0:01:28.2]} 34. h3 {[%clk 0:00:03.6]} 34...
Qe7 {[%clk 0:01:03.9]} 35. Qc8 {[%clk 0:00:03.1]} 35... Qe1+ {[%clk 0:01:02]}
36. Kh2 {[%clk 0:00:03.7]} 36... Qe5+ {[%clk 0:01:02.4]} 37. Kg1 {[%clk
0:00:03.9]} 37... Qe1+ {[%clk 0:01:00.7]} 38. Kh2 {[%clk 0:00:04.2]} 38... Qe5+
{[%clk 0:01:01.6]} 39. Kg1 {[%clk 0:00:04.5]} 39... Qe1+ {[%clk 0:01:00.9]}
1/2-1/2